Workbook

Sheet Summary
A3: Paragon Mortgages (No.24) PLC
A5: Information as at the Principal Determination Date | B5: 2016-03-31 | C5: 2016-06-30 | D5: 2016-09-30 | E5: 2016-12-30 | F5: 2017-03-31 | G5: 2017-06-30 | H5: 2017-09-29 | I5: 2017-12-29 | J5: 2018-03-29 | K5: 2018-06-29 | L5: 2018-09-28 | M5: 2018-12-31 | N5: 2019-03-29 | O5: 2019-06-28 | P5: 2019-09-30 | Q5: 2019-12-31 | R5: 2020-03-31
A6: Mortgage Asset Balance | B6: 342889.7738 | C6: 338568 | D6: 336912.3259 | E6: 332833 | F6: 327540.556 | G6: 299806.7094 | H6: 181381.3266 | I6: 120791.3927 | J6: 101858.8535 | K6: 91552.10837 | L6: 81256.28338 | M6: 73091.45062 | N6: 69627.37637 | O6: 54813.50029 | P6: 40488.06255 | Q6: 35941.10747 | R6: 0
A7: Discretionary Further Advance Prefunding Reserve | B7: 1500 | C7: 1361 | D7: 1332 | E7: 1292 | F7: 1208 | G7: 1003 | H7: 0 | I7: 0 | J7: 0 | K7: 0 | L7: 0 | M7: 0 | N7: 0 | O7: 0 | P7: 0 | Q7: 0 | R7: 0
A8: Total Assets | B8: =+B6+B7 -> 344389.7738 | C8: 339929 | D8: 338244.3259 | E8: 334125 | F8: 328748.556 | G8: 300809.7094 | H8: =+H6+H7 -> 181381.3266 | I8: 120791.3927 | J8: =+J6+J7 -> 101858.8535 | K8: 91552.10837 | L8: 81256.28338 | M8: 73091.45062 | N8: 69627.37637 | O8: 54813.50029 | P8: =+P6+P7 -> 40488.06255 | Q8: 35941.10747 | R8: =+R6+R7 -> 0
A9: Total Notes | B9: =SUM(B10:B14) -> 344390 | C9: =SUM(C10:C14) -> 339929 | D9: =SUM(D10:D14)-1 -> 338244 | E9: =SUM(E10:E14) -> 334125 | F9: =SUM(F10:F14)+1 -> 328749 | G9: =SUM(G10:G14) -> 300810 | H9: =SUM(H10:H14)-1 -> 181381 | I9: =SUM(I10:I14) -> 120791 | J9: =SUM(J10:J14)+1 -> 101859 | K9: =SUM(K10:K14)-1 -> 91552 | L9: =SUM(L10:L14) -> 81256 | M9: =SUM(M10:M14) -> 73091 | N9: =SUM(N10:N14) -> 69627 | O9: =SUM(O10:O14)+1 -> 54814 | P9: =SUM(P10:P14) -> 40488 | Q9: =SUM(Q10:Q14) -> 35941 | R9: =SUM(R10:R14) -> 0
A10: Class A1 Notes | B10: 86654 | C10: 85325 | D10: 84824 | E10: 83597 | F10: 81995 | G10: 73674 | H10: 38103 | I10: 20056 | J10: 14417 | K10: 11348 | L10: 8281 | M10: 5849 | N10: 4817 | O10: 405 | P10: 0 | Q10: 0 | R10: 0
A11: Class A2 Notes | B11: 204283 | C11: 201151 | D11: 199968 | E11: 197075 | F11: 193300 | G11: 173683 | H11: 89826 | I11: 47282 | J11: 33988 | K11: 26752 | L11: 19522 | M11: 13789 | N11: 11357 | O11: 955 | P11: 0 | Q11: 0 | R11: 0
A12: Class B Notes | B12: 19300 | C12: 19300 | D12: 19300 | E12: 19300 | F12: 19300 | G12: 19300 | H12: 19300 | I12: 19300 | J12: 19300 | K12: 19300 | L12: 19300 | M12: 19300 | N12: 19300 | O12: 19300 | P12: 6335 | Q12: 1788 | R12: 0
A13: Class C Notes | B13: 25400 | C13: 25400 | D13: 25400 | E13: 25400 | F13: 25400 | G13: 25400 | H13: 25400 | I13: 25400 | J13: 25400 | K13: 25400 | L13: 25400 | M13: 25400 | N13: 25400 | O13: 25400 | P13: 25400 | Q13: 25400 | R13: 0
A14: Class Z Notes | B14: 8753 | C14: 8753 | D14: 8753 | E14: 8753 | F14: 8753 | G14: 8753 | H14: 8753 | I14: 8753 | J14: 8753 | K14: 8753 | L14: 8753 | M14: 8753 | N14: 8753 | O14: 8753 | P14: 8753 | Q14: 8753 | R14: 0
A15: Class B, C and Z Notes as a % of the Total Notes | B15: =SUM(B12:B14)/B9 -> 0.1552106623 | C15: 0.1572475429 | D15: 0.1580308889 | E15: 0.1599790498 | F15: 0.1625951714 | G15: 0.1776968851 | H15: =SUM(H12:H14)/H9 -> 0.2947001064 | I15: 0.4425246914 | J15: =SUM(J12:J14)/J9 -> 0.5247744431 | K15: 0.5838539846 | L15: =SUM(L12:L14)/L9 -> 0.6578344984 | M15: 0.7313212297 | N15: =SUM(N12:N14)/N9 -> 0.7677050569 | O15: 0.9751705769 | P15: =SUM(P12:P14)/P9 -> 1 | Q15: 1 | R15: 0
A16: Lifetime Redemption Rate | B16: 0.0426 | C16: 0.0463 | D16: 0.0391 | E16: 0.0411 | F16: 0.0451 | G16: 0.0889 | H16: 0.2915 | I16: 0.3893 | J16: 0.4012 | K16: 0.3963 | L16: 0.3949 | M16: 0.3911 | N16: 0.3775 | O16: 0.3977 | P16: 0.4243 | Q16: 0.4216 | R16: 1
A17: Quarterly Redemption Rate | B17: 0.0175 | C17: 0.0133 | D17: 0.0051 | E17: 0.0123 | F17: 0.0162 | G17: 0.0854 | H17: 0.395 | I17: 0.334 | J17: 0.1567 | K17: 0.1012 | L17: 0.1125 | M17: 0.1005 | N17: 0.0474 | O17: 0.2127 | P17: 0.2614 | Q17: 0.1123 | R17: 1
A18: Further Advances released in the quarter | B18: 0 | C18: 139 | D18: 29 | E18: 40 | F18: 84 | G18: 205 | H18: 0 | I18: 0 | J18: 0 | K18: 0 | L18: 0 | M18: 0 | N18: 0 | O18: 0 | P18: 0 | Q18: 0 | R18: 0
A19: First Loss Fund Balance | B19: 8753 | C19: 8753 | D19: 8753 | E19: 8753 | F19: 8753 | G19: 8753 | H19: 8753 | I19: 8753 | J19: 8753 | K19: 8753 | L19: 8753 | M19: 8753 | N19: 8753 | O19: 8753 | P19: 8753 | Q19: 8753 | R19: 0
A20: Liquidity Amount of the First Loss Fund (2.50% of the Class A, B and C Notes) | B20: =SUM(B10:B13)*2.5% -> 8390.925 | C20: 8279.4 | D20: 8237.3 | E20: 8134.3 | F20: 7999.875 | G20: 7301.425 | H20: =SUM(H10:H13)*2.5% -> 4315.725 | I20: 2800.95 | J20: =SUM(J10:J13)*2.5% -> 2327.625 | K20: 2070 | L20: =SUM(L10:L13)*2.5% -> 1812.575 | M20: 1608.45 | N20: =SUM(N10:N13)*2.5% -> 1521.85 | O20: 1151.5 | P20: =SUM(P10:P13)*2.5% -> 793.375 | Q20: 679.7 | R20: =SUM(R10:R13)*2.5% -> 0
A21: Liquidity Excess Amount (First Loss Fund - Liquidity Amount) | B21: =B19-B20 -> 362.075 | C21: 473.6 | D21: 515.7 | E21: 618.7 | F21: 753.125 | G21: 1451.575 | H21: =H19-H20 -> 4437.275 | I21: 5952.05 | J21: =J19-J20 -> 6425.375 | K21: 6683 | L21: =L19-L20 -> 6940.425 | M21: 7144.55 | N21: =N19-N20 -> 7231.15 | O21: 7601.5 | P21: =P19-P20 -> 7959.625 | Q21: 8073.3 | R21: =R19-R20 -> 0
A22: First Loss Fund as a % of the Assets | B22: =+B19/B8 -> 0.02541596954 | C22: 0.02574949475 | D22: 0.02587774378 | E22: 0.02619678264 | F22: 0.02662521201 | G22: 0.0290981299 | H22: =+H19/H8 -> 0.04825744835 | I22: 0.07246377251 | J22: =+J19/J8 -> 0.08593263811 | K22: 0.09560675506 | L22: =+L19/L8 -> 0.1077209003 | M22: 0.1197540879 | N22: =+N19/N8 -> 0.1257120468 | O22: 0.1596869376 | P22: =+P19/P8 -> 0.2161871784 | Q22: 0.2435372924 | R22: 0
A23: Opening PDL Balance | B23: 0 | C23: 0 | D23: 0 | E23: 0 | F23: 0 | G23: 0 | H23: 0 | I23: 0 | J23: 0 | K23: 0 | L23: 0 | M23: 0 | N23: 0 | O23: 0 | P23: 0 | Q23: 0 | R23: 0
A24: Quarterly Losses | B24: =+B92+B122 -> 0 | C24: 0 | D24: 0 | E24: 0 | F24: 0 | G24: 0 | H24: 0 | I24: =+I92+I122 -> 0 | J24: 0 | K24: =+K92+K122 -> 0 | L24: 0 | M24: =+M92+M122 -> 0 | N24: 0 | O24: =+O92+O122 -> 0 | P24: 0 | Q24: =+Q92+Q122 -> 0 | R24: 0
A25: Quarterly Loss Rate (annualised) | B25: =1-(1-B24/B6)^4 -> 0 | C25: 0 | D25: 0 | E25: 0 | F25: 0 | G25: 0 | H25: =1-(1-H24/H6)^4 -> 0 | I25: 0 | J25: =1-(1-J24/J6)^4 -> 0 | K25: 0 | L25: =1-(1-L24/L6)^4 -> 0 | M25: 0 | N25: =1-(1-N24/N6)^4 -> 0 | O25: 0 | P25: =1-(1-P24/P6)^4 -> 0 | Q25: 0 | R25: 0
A26: PDL Replenishment made during the quarter (-ve = recoveries) | B26: 0 | C26: 0 | D26: 0 | E26: 0 | F26: 0 | G26: 0 | H26: 0 | I26: 0 | J26: 0 | K26: 0 | L26: 0 | M26: 0 | N26: 0 | O26: 0 | P26: 0 | Q26: 0 | R26: 0
A27: Outstanding PDL at end of the quarter | B27: =B23+B24-B26 -> 0 | C27: 0 | D27: 0 | E27: 0 | F27: 0 | G27: 0 | H27: =H23+H24-H26 -> 0 | I27: 0 | J27: =J23+J24-J26 -> 0 | K27: 0 | L27: =L23+L24-L26 -> 0 | M27: 0 | N27: =N23+N24-N26 -> 0 | O27: 0 | P27: =P23+P24-P26 -> 0 | Q27: 0 | R27: =R23+R24-R26 -> 0
A28: Spread Trap repayment in the quarter | B28: N/A | C28: N/A | D28: N/A | E28: N/A | F28: N/A | G28: N/A | H28: N/A | I28: N/A | J28: N/A | K28: N/A | L28: N/A | M28: N/A | N28: N/A | O28: N/A | P28: N/A | Q28: N/A | R28: N/A
A29: Spread % (WA Funding Rate less WA Interest Rate) | B29: 0.0135 | C29: 0.0143 | D29: 0.0149 | E29: 0.0159 | F29: 0.0164 | G29: 0.021 | H29: 0.0255 | I29: 0.0221 | J29: 0.0186 | K29: 0.015 | L29: 0.0137 | M29: 0.0122 | N29: 0.009851814226 | O29: 0.01213832549 | P29: 0.01301427335 | Q29: 0.01049685528 | R29: 0
A30: Total Income as a % of the Assets | B30: 0.0186 | C30: 0.0126 | D30: 0.0127 | E30: 0.0127 | F30: 0.0126 | G30: 0.0115 | H30: 0.0095 | I30: 0.0132 | J30: 0.0122 | K30: 0.0131 | L30: 0.0129 | M30: 0.013 | N30: 0.01366789345 | O30: 0.01321326497 | P30: 0.01169409275 | Q30: 0.0133619838 | R30: 0
A31: Quarterly surplus income to the Issuer (inc Issuer Services Provider Fee) | B31: 1998 | C31: 1551 | D31: 1504 | E31: 1554 | F31: 1490 | G31: 1284 | H31: 762 | I31: 1034 | J31: 472 | K31: 423 | L31: 342 | M31: 281 | N31: 292 | O31: 229 | P31: 40 | Q31: 54 | R31: 9020
A32: Surplus Income as a % of the Assets | B32: =+B31/350111 -> 0.00570676157 | C32: =+C31/B8 -> 0.004503618045 | D32: 0.004424453342 | E32: 0.004594312102 | F32: 0.004459408904 | G32: 0.003905720578 | H32: 0.002533162914 | I32: 0.005700697086 | J32: 0.003907563192 | K32: 0.004152805429 | L32: 0.003735577543 | M32: =+M31/L8 -> 0.003458194103 | N32: 0.003994995277 | O32: 0.003288936219 | P32: 0.0007297472299 | Q32: 0.001333726452 | R32: 0
A33: Losses as a % of the Assets | B33: =+B24/350111 -> 0 | C33: =+C24/B8 -> 0 | D33: 0 | E33: 0 | F33: 0 | G33: 0 | H33: 0 | I33: 0 | J33: 0 | K33: 0 | L33: 0 | M33: 0 | N33: 0 | O33: 0 | P33: 0 | Q33: 0 | R33: 0
A34: Number of Properties in Possession | B34: =+B90+B120 -> 0 | C34: 0 | D34: 0 | E34: =+E90+E120 -> 0 | F34: 0 | G34: =+G90+G120 -> 0 | H34: 0 | I34: =+I90+I120 -> 0 | J34: 0 | K34: =+K90+K120 -> 0 | L34: 0 | M34: =+M90+M120 -> 0 | N34: 0 | O34: =+O90+O120 -> 0 | P34: 0 | Q34: =+Q90+Q120 -> 0 | R34: 0
A35: Appointment of a Receiver of Rent | B35: 0 | C35: 0 | D35: 0 | E35: =+E91+E121 -> 0 | F35: 0 | G35: =+G91+G121 -> 0 | H35: 0 | I35: =+I91+I121 -> 0 | J35: 0 | K35: =+K91+K121 -> 0 | L35: 0 | M35: =+M91+M121 -> 0 | N35: 0 | O35: =+O91+O121 -> 0 | P35: 0 | Q35: =+Q91+Q121 -> 0 | R35: 0
A36: Average Number of months (Possessions) in Arrears at the Sale Date | B36: 0 | C36: 0 | D36: 0 | E36: 0 | F36: 0 | G36: 0 | H36: 0 | I36: 0 | J36: 0 | K36: 0 | L36: 0 | M36: 0 | N36: 0 | O36: 0 | P36: 0 | Q36: 0 | R36: 0
A37: Average Number of months (RoR) in Arrears at the Sale Date | B37: 0 | C37: 0 | D37: 0 | E37: 0 | F37: 0 | G37: 0 | H37: 0 | I37: 0 | J37: 0 | K37: 0 | L37: 0 | M37: 0 | N37: 0 | O37: 0 | P37: 0 | Q37: 0 | R37: 0
A38: Arrears excluding Receiver of Rent and Possession Cases
A39: Performing Loans | B39: 1 | C39: 1 | D39: 1 | E39: 1 | F39: 1 | G39: 1 | H39: 1 | I39: 1 | J39: 1 | K39: 1 | L39: 0.9991879648 | M39: 1 | N39: 1 | O39: 1 | P39: 1 | Q39: 0.9981641367 | R39: 0
A40: >1 to 2 months arrears | B40: 0 | C40: 0 | D40: 0 | E40: 0 | F40: 0 | G40: 0 | H40: 0 | I40: 0 | J40: 0 | K40: 0 | L40: 0 | M40: 0 | N40: 0 | O40: 0 | P40: 0 | Q40: 0.001835863295 | R40: 0
A41: >2 to 3 months arrears | B41: 0 | C41: 0 | D41: 0 | E41: 0 | F41: 0 | G41: 0 | H41: 0 | I41: 0 | J41: 0 | K41: 0 | L41: 0.0008120351714 | M41: 0 | N41: 0 | O41: 0 | P41: 0 | Q41: 0 | R41: 0
A42: >3 months arrears | B42: 0 | C42: 0 | D42: 0 | E42: 0 | F42: 0 | G42: 0 | H42: 0 | I42: 0 | J42: 0 | K42: 0 | L42: 0 | M42: 0 | N42: 0 | O42: 0 | P42: 0 | Q42: 0 | R42: 0
A43: Total | B43: =SUM(B39:B42) -> 1 | C43: 1 | D43: 1 | E43: 1 | F43: 1 | G43: 1 | H43: 1 | I43: 1 | J43: 1 | K43: 1 | L43: 1 | M43: 1 | N43: 1 | O43: 1 | P43: 1 | Q43: 1 | R43: =SUM(R39:R42) -> 0
A44: Total Value of Arrears (£000's) | B44: 0 | C44: 0 | D44: 0 | E44: 1.349299785 | F44: 0.9384904601 | G44: 0.2499998897 | H44: 2.412359724 | I44: 2.630300265 | J44: 1.859699811 | K44: 1.089869614 | L44: 1.637729982 | M44: 2.438599753 | N44: 1.902540114 | O44: 0.8198902933 | P44: 0.2637501352 | Q44: 1.107089877 | R44: 0
A45: Total Value of Arrears as a % of the Notes Issued (£350,110,956) | B45: =+B44/350111 -> 0 | C45: 0 | D45: 0 | E45: 3.85392e-06 | F45: 2.680551197e-06 | G45: 7.140589405e-07 | H45: =+H44/350111 -> 6.890271155e-06 | I45: 7.512760995e-06 | J45: =+J44/350111 -> 5.31174345e-06 | K45: 3.112925942e-06 | L45: =+L44/350111 -> 4.677745007e-06 | M45: 6.965218897e-06 | N45: =+N44/350111 -> 5.434105509e-06 | O45: 2.34180101e-06 | P45: =+P44/350111 -> 7.533329007e-07 | Q45: 3.162111092e-06 | R45: =+R44/350111 -> 0
A47: Underlying Assets | B47: =+B5 -> 2016-03-31 | C47: 2016-06-30 | D47: 2016-09-30 | E47: 2016-12-30 | F47: 2017-03-31 | G47: 2017-06-30 | H47: =+H5 -> 2017-09-29 | I47: 2017-12-29 | J47: =+J5 -> 2018-03-29 | K47: 2018-06-29 | L47: =+L5 -> 2018-09-28 | M47: 2018-12-31 | N47: =+N5 -> 2019-03-29 | O47: 2019-06-28 | P47: =+P5 -> 2019-09-30 | Q47: 2019-12-31 | R47: =+R5 -> 2020-03-31
A48: Weighted Average LTV | B48: 0.7247589756 | C48: 0.7247604552 | D48: 0.7243182403 | E48: 0.7243130578 | F48: 0.7238351396 | G48: 0.7227299434 | H48: 0.7164745799 | I48: 0.7118805305 | J48: 0.7105504911 | K48: 0.7067059595 | L48: 0.7110934358 | M48: 0.7149902355 | N48: 0.7170706722 | O48: 0.7155374247 | P48: 0.7139216358 | Q48: 0.7134359813 | R48: 0
A49: Weighted Average Nationwide Indexed LTV | B49: 0.7101859817 | C49: 0.7040871962 | D49: 0.6804163033 | E49: 0.6749074888 | F49: 0.6688498662 | G49: 0.6687847421 | H49: 0.650523502 | I49: 0.6498611842 | J49: 0.6457426787 | K49: 0.6360857404 | L49: 0.6398093227 | M49: 0.6405757326 | N49: 0.6520151015 | O49: 0.6504745533 | P49: 0.6391206327 | Q49: 0.6373250055 | R49: 0
A50: Weighted Average Halifax Indexed LTV | B50: 0.7106992804 | C50: 0.6788997309 | D50: N/A | E50: N/A | F50: N/A | G50: N/A | H50: N/A | I50: N/A | J50: N/A | K50: N/A | L50: N/A | M50: N/A | N50: N/A | O50: N/A | P50: N/A | Q50: N/A | R50: N/A
A51: % of Fixed Rate Mortgages (reverting to Libor plus a variable margin) | B51: 0.9000383706 | C51: 0.9068863976 | D51: 0.9089165162 | E51: 0.9096289214 | F51: 0.9076213699 | G51: 0.6353271031 | H51: 0.3900579574 | I51: 0.4808712011 | J51: 0.5517723225 | K51: 0.5824203742 | L51: 0.6107879899 | M51: 0.6604368549 | N51: 0.6877167963 | O51: 0.6143711889 | P51: 0.4499902994 | Q51: 0.4689242902 | R51: 0
A52: % of Libor Linked Mortgages (reverting to Libor plus a variable margin) | B52: 0.07238766311 | C52: 0.06505924194 | D52: 0.06308346325 | E52: 0.06145982177 | F52: 0.05539918315 | G52: 0.05662497905 | H52: 0.03341420059 | I52: 0.003791246958 | J52: 0.004495927296 | K52: 0.005002069402 | L52: 0.005635871848 | M52: 0.006265438654 | N52: 0.00657715433 | O52: 0.008354693599 | P52: 0.01131074127 | Q52: 0.01274167749 | R52: 0
A53: % of Libor Linked Mortgages plus a Variable Margin | B53: 0 | C53: 0 | D53: 0.0002044300392 | E53: 0.0007817747183 | F53: 0.00877980231 | G53: 0.2782257134 | H53: 0.5272468696 | I53: 0.4413629885 | J53: 0.3560294835 | K53: 0.3149792286 | L53: 0.3018050698 | M53: 0.2710677114 | N53: 0.2445550128 | O53: 0.3037734752 | P53: 0.4392504761 | Q53: 0.413147379 | R53: 0
A54: % of Non Reversionary Libor Linked Mortgages | B54: 0.02757396628 | C54: 0.02805436047 | D54: 0.02779559051 | E54: 0.0281294821 | F54: 0.0281996446 | G54: 0.02982220454 | H54: 0.0492809724 | I54: 0.07397456343 | J54: 0.08770226661 | K54: 0.09759832776 | L54: 0.08177106845 | M54: 0.06222999505 | N54: 0.06115103659 | O54: 0.07350064234 | P54: 0.09944848324 | Q54: 0.1051866533 | R54: 0
A55: Weighted Average Loan Size | B55: 166775.1818 | C55: 166535.8818 | D55: 166623.3066 | E55: 166582.8111 | F55: 166772.1772 | G55: 166466.8014 | H55: 162819.8623 | I55: 159988.5996 | J55: 160914.4606 | K55: 162039.1299 | L55: 158394.3146 | M55: 154854.7683 | N55: 155418.2508 | O55: 157058.7401 | P55: 152210.7615 | Q55: 151650.2425 | R55: 0
A56: Weighted Average Interest Rate | B56: 0.03813404674 | C56: 0.03812340237 | D56: 0.03810117676 | E56: 0.03791917226 | F56: 0.03799877602 | G56: 0.04241279292 | H56: 0.04665147584 | I56: 0.04582713207 | J56: 0.04580179337 | K56: 0.04603839132 | L56: 0.04519713706 | M56: 0.0453252451 | N56: 0.0451982542 | O56: 0.04692819537 | P56: 0.05019779625 | Q56: 0.04993039398 | R56: 0
A57: Weighted Average Maturity Date (years) | B57: 20.65571892 | C57: 20.39602223 | D57: 20.14946249 | E57: 19.9019203 | F57: 19.66329428 | G57: 19.39595668 | H57: 18.98949884 | I57: 18.35339728 | J57: 17.91977577 | K57: 17.67252282 | L57: 17.36160685 | M57: 17.15775986 | N57: 16.97650185 | O57: 16.90158231 | P57: 16.51484694 | Q57: 16.67176737 | R57: 0
A58: Weighted Average Seasoning (months) | B58: 8.69382213 | C58: 11.68928533 | D58: 14.68819474 | E58: 17.72574141 | F58: 20.65423229 | G58: 23.7341273 | H58: 27.38777941 | I58: 30.75924063 | J58: 33.58689956 | K58: 36.53115837 | L58: 39.70900174 | M58: 42.98368394 | N58: 46.01519404 | O58: 49.47554337 | P58: 51.66124016 | Q58: 53.86495062 | R58: 0
A59: % of Interest Only Mortgages (optional switching to repayment) | B59: 0.9295109657 | C59: 0.9284711643 | D59: 0.9289102358 | E59: 0.9287200612 | F59: 0.9286513619 | G59: 0.9255769275 | H59: 0.9113359671 | I59: 0.9036857418 | J59: 0.9021765797 | K59: 0.9069334581 | L59: 0.9045375223 | M59: 0.9051561373 | N59: 0.9034587412 | O59: 0.9191751451 | P59: 0.9240082971 | Q59: 0.9172660015 | R59: 0
A60: % of Repayment Mortgages | B60: 0.07048903428 | C60: 0.07152883574 | D60: 0.07108976424 | E60: 0.07127993884 | F60: 0.07134863807 | G60: 0.07442307253 | H60: 0.0886640329 | I60: 0.09631425818 | J60: 0.09782342029 | K60: 0.0930665419 | L60: 0.0954624777 | M60: 0.09484386274 | N60: 0.09654125878 | O60: 0.08082485495 | P60: 0.07599170289 | Q60: 0.08273399846 | R60: 0
A61: % of Mortgages in London | B61: 0.2241233143 | C61: 0.2210371167 | D61: 0.2214455774 | E61: 0.2210628862 | F61: 0.220191483 | G61: 0.2246145239 | H61: 0.2007258328 | I61: 0.1998374043 | J61: 0.2004736894 | K61: 0.2071773689 | L61: 0.1843059785 | M61: 0.1758187157 | N61: 0.1712011776 | O61: 0.1531344867 | P61: 0.161687369 | Q61: 0.158306557 | R61: 0
A62: % of Mortgages in the South East | B62: 0.3996769413 | C62: 0.4026594183 | D62: 0.4040127716 | E62: 0.4049771829 | F62: 0.4059511561 | G62: 0.3889530524 | H62: 0.3713717162 | I62: 0.3345636488 | J62: 0.321405863 | K62: 0.3235851155 | L62: 0.3356864745 | M62: 0.3309358161 | N62: 0.3356080196 | O62: 0.3408718219 | P62: 0.2662906494 | Q62: 0.2492326236 | R62: 0
A63: % of Owner Occupied Mortgages | B63: 0 | C63: 0 | D63: 0 | E63: 0 | F63: 0 | G63: 0 | H63: 0 | I63: 0 | J63: 0 | K63: 0 | L63: 0 | M63: 0 | N63: 0 | O63: 0 | P63: 0 | Q63: 0 | R63: 0
A64: % of Investment Home Loans - Professional Landlords | B64: 0.417016841 | C64: 0.4190785023 | D64: 0.4235745704 | E64: 0.4251918115 | F64: 0.4247490134 | G64: 0.4381226751 | H64: 0.475113283 | I64: 0.4963556301 | J64: 0.5298550032 | K64: 0.5271243303 | L64: 0.5370050547 | M64: 0.5465645696 | N64: 0.556845577 | O64: 0.6119763311 | P64: 0.6345916957 | Q64: 0.6501643982 | R64: 0
A65: % of Investment Home Loans - Emerging Professional Landlords | B65: 0.582983159 | C65: 0.5809214977 | D65: 0.5764254296 | E65: 0.5748081885 | F65: 0.5752509866 | G65: 0.5618773249 | H65: 0.524886717 | I65: 0.5036443699 | J65: 0.4701449968 | K65: 0.4728756697 | L65: 0.4629949453 | M65: 0.4534354304 | N65: 0.443154423 | O65: 0.3880236689 | P65: 0.3654083043 | Q65: 0.3498356018 | R65: 0
A66: Weighted Average Interest Coverage Ratio (calculated at the origination date) | B66: 1.48758714 | C66: 1.487495407 | D66: 1.486228521 | E66: 1.487790087 | F66: 1.48666205 | G66: 1.488335026 | H66: 1.519172273 | I66: 1.567369929 | J66: 1.556579364 | K66: 1.565934497 | L66: 1.559505148 | M66: 1.559174442 | N66: 1.554382922 | O66: 1.556807999 | P66: 1.596506658 | Q66: 1.605657294 | R66: 0
A67: % of Paragon Originated Assets | B67: 0.1885904988 | C67: 0.1910641036 | D67: 0.1910390048 | E67: 0.1918405253 | F67: 0.1938813166 | G67: 0.2102227873 | H67: 0.29593691 | I67: 0.3753603353 | J67: 0.4172253051 | K67: 0.4327314897 | L67: 0.4220758993 | M67: 0.4220042908 | N67: 0.4269774816 | O67: 0.4779758523 | P67: 0.5145972499 | Q67: 0.545241096 | R67: 0
A68: % of Mortgage Trust Originated Assets | B68: 0.8114095012 | C68: 0.8089358964 | D68: 0.8089609952 | E68: 0.8081594747 | F68: 0.8061186834 | G68: 0.7897772127 | H68: 0.70406309 | I68: 0.6246396647 | J68: 0.5827746949 | K68: 0.5672685103 | L68: 0.5779241007 | M68: 0.5779957092 | N68: 0.5730225184 | O68: 0.5220241477 | P68: 0.4854027501 | Q68: 0.454758904 | R68: 0
A70: Underlying Assets - Paragon Mortgages 2010 Paragon Originated Assets | B70: =+B5 -> 2016-03-31 | C70: 2016-06-30 | D70: 2016-09-30 | E70: 2016-12-30 | F70: 2017-03-31 | G70: 2017-06-30 | H70: =+H5 -> 2017-09-29 | I70: 2017-12-29 | J70: =+J5 -> 2018-03-29 | K70: 2018-06-29 | L70: =+L5 -> 2018-09-28 | M70: 2018-12-31 | N70: =+N5 -> 2019-03-29 | O70: 2019-06-28 | P70: =+P5 -> 2019-09-30 | Q70: 2019-12-31 | R70: =+R5 -> 2020-03-31
A71: Weighted Average LTV | B71: 0.6801490272 | C71: 0.6804064928 | D71: 0.6798899386 | E71: 0.6789858336 | F71: 0.6786672233 | G71: 0.6809270848 | H71: 0.6781380723 | I71: 0.6824116978 | J71: 0.6812779315 | K71: 0.678845411 | L71: 0.6875196876 | M71: 0.6962968423 | N71: 0.7041937289 | O71: 0.7094945113 | P71: 0.7077106217 | Q71: 0.7084353178 | R71: 0
A72: Weighted Average Nationwide Indexed LTV | B72: 0.6688046814 | C72: 0.6648862527 | D72: 0.6431662714 | E72: 0.6377232445 | F72: 0.6332350826 | G72: 0.6358794997 | H72: 0.6149969367 | I72: 0.6279840754 | J72: 0.6226960275 | K72: 0.6153071379 | L72: 0.6225584736 | M72: 0.6273558459 | N72: 0.6427566581 | O72: 0.6462408022 | P72: 0.6329403881 | Q72: 0.6328492944 | R72: 0
A73: Weighted Average Halifax Indexed LTV | B73: 0.6688828197 | C73: 0.6421065062 | D73: N/A | E73: N/A | F73: N/A | G73: N/A | H73: N/A | I73: N/A | J73: N/A | K73: N/A | L73: N/A | M73: N/A | N73: N/A | O73: N/A | P73: N/A | Q73: N/A | R73: N/A
A74: % of Fixed Rate Mortgages (reverting to Libor plus a variable margin) | B74: 0.8348447687 | C74: 0.8338637955 | D74: 0.8329959773 | E74: 0.8285538498 | F74: 0.8209356154 | G74: 0.7797345663 | H74: 0.5108935238 | I74: 0.4926878888 | J74: 0.4985112295 | K74: 0.499639259 | L74: 0.5609220286 | M74: 0.6085581374 | N74: 0.624966752 | O74: 0.6050702734 | P74: 0.5218732437 | Q74: 0.5259292695 | R74: 0
A75: % of Libor Linked Mortgages (reverting to Libor plus a variable margin) | B75: 0.0210556877 | C75: 0.02141453609 | D75: 0.02150708319 | E75: 0.02182020004 | F75: 0.02192285535 | G75: 0.02125391147 | H75: 0.02380628536 | I75: 0.01010028658 | J75: 0.01077577808 | K75: 0.01155929143 | L75: 0.01335274499 | M75: 0.01484686007 | N75: 0.01540398408 | O75: 0.01747932151 | P75: 0.02197979346 | Q75: 0.02336888687 | R75: 0
A76: % of Libor Linked Mortgages plus a Variable Margin | B76: 0 | C76: 0 | D76: 0 | E76: 0.002996440764 | F76: 0.0116935558 | G76: 0.05715152253 | H76: 0.2987749257 | I76: 0.3001356915 | J76: 0.2805093793 | K76: 0.2632612934 | L76: 0.2319897665 | M76: 0.2291320586 | N76: 0.2164108526 | O76: 0.2236756025 | P76: 0.262891979 | Q76: 0.2577841526 | R76: 0
A77: % of Non Reversionary Libor Linked Mortgages | B77: 0.1440995436 | C77: 0.1447216684 | D77: 0.1454969395 | E77: 0.1466295094 | F77: 0.1454479735 | G77: 0.1418599997 | H77: 0.1665252651 | I77: 0.1970761332 | J77: 0.2102036131 | K77: 0.2255401562 | L77: 0.1937354599 | M77: 0.1474629439 | N77: 0.1432184113 | O77: 0.1537748026 | P77: 0.1932549839 | Q77: 0.192917691 | R77: 0
A78: Weighted Average Loan Size | B78: 195364.8141 | C78: 196024.5027 | D78: 196229.8641 | E78: 195861.2064 | F78: 196606.7933 | G78: 196956.8816 | H78: 200288.9154 | I78: 192937.4369 | J78: 199521.5552 | K78: 196126.1398 | L78: 183402.7748 | M78: 179330.8476 | N78: 180177.7079 | O78: 185812.2661 | P78: 182763.5582 | Q78: 181449.7114 | R78: 0
A79: Weighted Average Interest Rate | B79: 0.04545689531 | C79: 0.04547505808 | D79: 0.04546382247 | E79: 0.04515204968 | F79: 0.04518738998 | G79: 0.04545892192 | H79: 0.04630092188 | I79: 0.04597267987 | J79: 0.04677070367 | K79: 0.04755959276 | L79: 0.04647684595 | M79: 0.0471993347 | N79: 0.04736551694 | O79: 0.04781025989 | P79: 0.04943957183 | Q79: 0.04937197111 | R79: 0
A80: Weighted Average Maturity Date (years) | B80: 19.81249459 | C80: 19.56368187 | D80: 19.32079808 | E80: 19.0413578 | F80: 18.80290359 | G80: 18.56948541 | H80: 18.40010233 | I80: 18.03893454 | J80: 17.76761983 | K80: 17.43951784 | L80: 17.14691916 | M80: 17.2510997 | N80: 17.16956472 | O80: 17.24880821 | P80: 16.80533063 | Q80: 16.80771134 | R80: 0
A81: Weighted Average Seasoning (months) | B81: 11.02771015 | C81: 14.05587169 | D81: 17.03800137 | E81: 20.09276244 | F81: 23.01126685 | G81: 25.96719898 | H81: 29.36744893 | I81: 31.90203105 | J81: 34.00820418 | K81: 36.53671376 | L81: 39.85660701 | M81: 43.18294157 | N81: 46.05794977 | O81: 49.4075244 | P81: 51.64859424 | Q81: 53.94182057 | R81: 0
A82: % of Interest Only Mortgages (optional switching to repayment) | B82: 0.9333366554 | C82: 0.9341445734 | D82: 0.9346106026 | E82: 0.9347560477 | F82: 0.9342919402 | G82: 0.9372751827 | H82: 0.9362567255 | I82: 0.9276867734 | J82: 0.9305297668 | K82: 0.9406690555 | L82: 0.9319810024 | M82: 0.9252593356 | N82: 0.9264134482 | O82: 0.9431214046 | P82: 0.9493239137 | Q82: 0.9504436328 | R82: 0
A83: % of Repayment Mortgages | B83: 0.06666334463 | C83: 0.06585542656 | D83: 0.06538939736 | E83: 0.06524395226 | F83: 0.06570805978 | G83: 0.06272481726 | H83: 0.06374327446 | I83: 0.07231322663 | J83: 0.06947023321 | K83: 0.05933094447 | L83: 0.06801899755 | M83: 0.07474066436 | N83: 0.07358655182 | O83: 0.05687859543 | P83: 0.05067608626 | Q83: 0.04955636716 | R83: 0
A84: % of Mortgages in London | B84: 0.2507458275 | C84: 0.2504521634 | D84: 0.2514769578 | E84: 0.2483892968 | F84: 0.2494990953 | G84: 0.2485044977 | H84: 0.2508251578 | I84: 0.2371356551 | J84: 0.2527379453 | K84: 0.2622347897 | L84: 0.2031743358 | M84: 0.1975821782 | N84: 0.1862804112 | O84: 0.1597269309 | P84: 0.1545009027 | Q84: 0.1642193344 | R84: 0
A85: % of Mortgages in the South East | B85: 0.2875161142 | C85: 0.2886687283 | D85: 0.290012745 | E85: 0.2921724679 | F85: 0.2917293649 | G85: 0.2942365191 | H85: 0.2797456944 | I85: 0.2544055215 | J85: 0.2553781278 | K85: 0.2466235435 | L85: 0.2615607495 | M85: 0.2683898177 | N85: 0.2783989817 | O85: 0.3158348032 | P85: 0.2627298665 | Q85: 0.2307064374 | R85: 0
A86: % of Owner Occupied Mortgages | B86: 0 | C86: 0 | D86: 0 | E86: 0 | F86: 0 | G86: 0 | H86: 0 | I86: 0 | J86: 0 | K86: 0 | L86: 0 | M86: 0 | N86: 0 | O86: 0 | P86: 0 | Q86: 0 | R86: 0
A87: % of Investment Home Loans - Professional Landlords | B87: 0.7409357504 | C87: 0.7386318979 | D87: 0.7400187725 | E87: 0.7501677773 | F87: 0.7441098829 | G87: 0.7436793015 | H87: 0.7391117769 | I87: 0.7270299564 | J87: 0.7262173468 | K87: 0.7318583452 | L87: 0.749649863 | M87: 0.7658494264 | N87: 0.7788458915 | O87: 0.8081807345 | P87: 0.8163638455 | Q87: 0.8308521773 | R87: 0
A88: % of Investment Home Loans - Emerging Professional Landlords | B88: 0.2590642496 | C88: 0.2613681021 | D88: 0.2599812275 | E88: 0.2498322227 | F88: 0.2558901171 | G88: 0.2563206985 | H88: 0.2608882231 | I88: 0.2729700436 | J88: 0.2737826532 | K88: 0.2681416548 | L88: 0.250350137 | M88: 0.2341505736 | N88: 0.2211541085 | O88: 0.1918192655 | P88: 0.1836361545 | Q88: 0.1691478227 | R88: 0
A89: Weighted Average Interest Coverage Ratio (calculated at the origination date) | B89: 1.631571686 | C89: 1.628983583 | D89: 1.628320392 | E89: 1.625949326 | F89: 1.62466887 | G89: 1.622991231 | H89: 1.629744248 | I89: 1.668259663 | J89: 1.639963057 | K89: 1.641342327 | L89: 1.638076515 | M89: 1.632976803 | N89: 1.625269474 | O89: 1.620753165 | P89: 1.660456038 | Q89: 1.662333874 | R89: 0
A90: Number of Properties in Possession | B90: 0 | C90: 0 | D90: 0 | E90: 0 | F90: 0 | G90: 0 | H90: 0 | I90: 0 | J90: 0 | K90: 0 | L90: 0 | M90: 0 | N90: 0 | O90: 0 | P90: 0 | Q90: 0 | R90: 0
A91: Appointment of a Receiver of Rent | B91: 0 | C91: 0 | D91: 0 | E91: 0 | F91: 0 | G91: 0 | H91: 0 | I91: 0 | J91: 0 | K91: 0 | L91: 0 | M91: 0 | N91: 0 | O91: 0 | P91: 0 | Q91: 0 | R91: 0
A92: PML Quarterly Losses | B92: 0 | C92: 0 | D92: 0 | E92: 0 | F92: 0 | G92: 0 | H92: 0 | I92: 0 | J92: 0 | K92: 0 | L92: 0 | M92: 0 | N92: 0 | O92: 0 | P92: 0 | Q92: 0 | R92: 0
A93: Arrears excluding Receiver of Rent and Possession Cases
A94: Performing Loans | B94: 1 | C94: 1 | D94: 1 | E94: 1 | F94: 1 | G94: 1 | H94: 1 | I94: 1 | J94: 1 | K94: 1 | L94: 1 | M94: 1 | N94: 1 | O94: 1 | P94: 1 | Q94: 1 | R94: 0
A95: >1 to 2 months arrears | B95: 0 | C95: 0 | D95: 0 | E95: 0 | F95: 0 | G95: 0 | H95: 0 | I95: 0 | J95: 0 | K95: 0 | L95: 0 | M95: 0 | N95: 0 | O95: 0 | P95: 0 | Q95: 0 | R95: 0
A96: >2 to 3 months arrears | B96: 0 | C96: 0 | D96: 0 | E96: 0 | F96: 0 | G96: 0 | H96: 0 | I96: 0 | J96: 0 | K96: 0 | L96: 0 | M96: 0 | N96: 0 | O96: 0 | P96: 0 | Q96: 0 | R96: 0
A97: >3 months arrears | B97: 0 | C97: 0 | D97: 0 | E97: 0 | F97: 0 | G97: 0 | H97: 0 | I97: 0 | J97: 0 | K97: 0 | L97: 0 | M97: 0 | N97: 0 | O97: 0 | P97: 0 | Q97: 0 | R97: 0
A98: Total | B98: =SUM(B94:B97) -> 1 | C98: 1 | D98: 1 | E98: 1 | F98: 1 | G98: 1 | H98: 1 | I98: 1 | J98: 1 | K98: 1 | L98: 1 | M98: 1 | N98: 1 | O98: 1 | P98: 1 | Q98: 1 | R98: =SUM(R94:R97) -> 0
A100: Underlying Assets - Paragon Mortgages 2010 Mortgage Trust Originated Assets | B100: =+B70 -> 2016-03-31 | C100: 2016-06-30 | D100: 2016-09-30 | E100: 2016-12-30 | F100: 2017-03-31 | G100: 2017-06-30 | H100: =+H70 -> 2017-09-29 | I100: 2017-12-29 | J100: =+J70 -> 2018-03-29 | K100: 2018-06-29 | L100: =+L70 -> 2018-09-28 | M100: 2018-12-31 | N100: =+N70 -> 2019-03-29 | O100: 2019-06-28 | P100: =+P70 -> 2019-09-30 | Q100: 2019-12-31 | R100: =+R70 -> 2020-03-31
A101: Weighted Average LTV | B101: 0.7351273684 | C101: 0.7352365017 | D101: 0.7348101411 | E101: 0.7350728135 | F101: 0.7346985711 | G101: 0.7338570224 | H101: 0.7325884592 | I101: 0.7295890295 | J101: 0.7315075654 | K101: 0.7279589224 | L101: 0.7283100755 | M101: 0.7286385932 | N101: 0.7266656963 | O101: 0.7210704382 | P101: 0.7205062107 | Q101: 0.7194316139 | R101: 0
A102: Weighted Average Nationwide Indexed LTV | B102: 0.7198039613 | C102: 0.7133461414 | D102: 0.6892130303 | E102: 0.6837342676 | F102: 0.6774156535 | G102: 0.6775434549 | H102: 0.6654562859 | I102: 0.6630076418 | J102: 0.6622424447 | K102: 0.6519363569 | L102: 0.6524081529 | M102: 0.650227792 | N102: 0.6589138649 | O102: 0.6543510612 | P102: 0.6456725874 | Q102: 0.6426912371 | R102: 0
A103: Weighted Average Halifax Indexed LTV | B103: 0.7204184015 | C103: 0.6875899925 | D103: N/A | E103: N/A | F103: N/A | G103: N/A | H103: N/A | I103: N/A | J103: N/A | K103: N/A | L103: N/A | M103: N/A | N103: N/A | O103: N/A | P103: N/A | Q103: N/A | R103: N/A
A104: % of Fixed Rate Mortgages (reverting to Libor plus a variable margin) | B104: 0.9151908847 | C104: 0.9241337445 | D104: 0.9268454204 | E104: 0.9288744847 | F104: 0.9284703449 | G104: 0.5968887448 | H104: 0.3392674748 | I104: 0.4737702818 | J104: 0.5899034837 | K104: 0.6455685918 | L104: 0.6472066483 | M104: 0.6983143704 | N104: 0.7344738695 | O104: 0.6228872949 | P104: 0.3737839627 | Q104: 0.400577179 | R104: 0
A105: % of Libor Linked Mortgages (reverting to Libor plus a variable margin) | B105: 0.0843184118 | C105: 0.0753677678 | D105: 0.07290187268 | E105: 0.07086945698 | F105: 0.06345064585 | G105: 0.06604004485 | H105: 0.03745266928 | I105: 0 | J105: 0 | K105: 0 | L105: 0 | M105: 0 | N105: 0 | O105: 0 | P105: 0 | Q105: 0 | R105: 0
A106: % of Libor Linked Mortgages plus a Variable Margin | B106: 0 | C106: 0 | D106: 0.0002527069172 | E106: 0.0002560583086 | F106: 0.008079009271 | G106: 0.3370712104 | H106: 0.6232798559 | I106: 0.5262297182 | J106: 0.4100965163 | K106: 0.3544314082 | L106: 0.3527933517 | M106: 0.3016856296 | N106: 0.2655261305 | O106: 0.3771127051 | P106: 0.6262160373 | Q106: 0.599422821 | R106: 0
A107: % of Non Reversionary Libor Linked Mortgages | B107: 0.000490703498 | C107: 0.0004984877252 | D107: 0 | E107: 0 | F107: 0 | G107: 0 | H107: 0 | I107: 0 | J107: 0 | K107: 0 | L107: 0 | M107: 0 | N107: 0 | O107: 0 | P107: 0 | Q107: 0 | R107: 0
A108: Weighted Average Loan Size | B108: 161289.2871 | C108: 160821.7039 | D108: 160890.75 | E108: 160874.2245 | F108: 160899.7939 | G108: 159878.803 | H108: 150950.2332 | I108: 145098.2597 | J108: 141335.1483 | K108: 143070.6009 | L108: 144048.9709 | M108: 140821.8161 | N108: 140982.5249 | O108: 137567.1672 | P108: 129296.1639 | Q108: 126701.8499 | R108: 0
A109: Weighted Average Interest Rate | B109: 0.03643204589 | C109: 0.03638700087 | D109: 0.0363624619 | E109: 0.03620223514 | F109: 0.03626982721 | G109: 0.04160197473 | H109: 0.04679882323 | I109: 0.04573966905 | J109: 0.04510812239 | K109: 0.04487796772 | L109: 0.04426252596 | M109: 0.04395694107 | N109: 0.04358335713 | O109: 0.04612055929 | P109: 0.05100162399 | Q109: 0.0505999248 | R109: 0
A110: Weighted Average Maturity Date (years) | B110: 20.85170392 | C110: 20.59261428 | D110: 20.34515453 | E110: 20.10620023 | F110: 19.87022868 | G110: 19.61594669 | H110: 19.23723826 | I110: 18.54236517 | J110: 18.02870862 | K110: 17.85026685 | L110: 17.51839993 | M110: 17.0896109 | N110: 16.8326445 | O110: 16.58365527 | P110: 16.20689213 | Q110: 16.50877498 | R110: 0
A111: Weighted Average Seasoning (months) | B111: 8.151372104 | C111: 11.1303168 | D111: 14.13327958 | E111: 17.16385905 | F111: 20.0873369 | G111: 23.13972859 | H111: 26.55567034 | I111: 30.0725116 | J111: 33.28527537 | K111: 36.52692053 | L111: 39.60120103 | M111: 42.83820263 | N111: 45.98333537 | O111: 49.53782292 | P111: 51.67464667 | Q111: 53.77278605 | R111: 0
A112: % of Interest Only Mortgages (optional switching to repayment) | B112: 0.9286217862 | C112: 0.927131151 | D112: 0.9275640739 | E112: 0.9272872414 | F112: 0.9272947345 | G112: 0.9224630875 | H112: 0.900861093 | I112: 0.8892629702 | J112: 0.8818777108 | K112: 0.8811988103 | L112: 0.8844946974 | M112: 0.8904784574 | N112: 0.8863544519 | O112: 0.8972494662 | P112: 0.8971700752 | Q112: 0.8774871035 | R112: 0
A113: % of Repayment Mortgages | B113: 0.07137821381 | C113: 0.07286884902 | D113: 0.07243592607 | E113: 0.07271275857 | F113: 0.07270526553 | G113: 0.07753691248 | H113: 0.09913890703 | I113: 0.1107370298 | J113: 0.1181222892 | K113: 0.1188011897 | L113: 0.1155053026 | M113: 0.1095215426 | N113: 0.1136455481 | O113: 0.1027505338 | P113: 0.1028299248 | Q113: 0.1225128965 | R113: 0
A114: % of Mortgages in London | B114: 0.2179356212 | C114: 0.2140895211 | D114: 0.2143535606 | E114: 0.2145761554 | F114: 0.2131426469 | G114: 0.2182554941 | H114: 0.1796677207 | I114: 0.1774240279 | J114: 0.163056193 | K114: 0.1651777174 | L114: 0.1705258318 | M114: 0.1599288495 | N114: 0.1599651565 | O114: 0.1470983117 | P114: 0.1693060646 | Q114: 0.1512173298 | R114: 0
A115: % of Mortgages in the South East | B115: 0.4257457343 | C115: 0.4295830956 | D115: 0.4309342817 | E115: 0.4317547144 | F115: 0.4334228817 | G115: 0.4141646859 | H115: 0.409884631 | I115: 0.3827325104 | J115: 0.3686770335 | K115: 0.3822939899 | L115: 0.3898227911 | M115: 0.3766016909 | N115: 0.3782363109 | O115: 0.3637962219 | P115: 0.2700655952 | Q115: 0.2714449167 | R115: 0
A116: % of Owner Occupied Mortgages | B116: 0 | C116: 0 | D116: 0 | E116: 0 | F116: 0 | G116: 0 | H116: 0 | I116: 0 | J116: 0 | K116: 0 | L116: 0 | M116: 0 | N116: 0 | O116: 0 | P116: 0 | Q116: 0 | R116: 0
A117: % of Investment Home Loans - Professional Landlords | B117: 0.3417305292 | C117: 0.3436025797 | D117: 0.348845151 | E117: 0.3480491659 | F117: 0.3479388524 | G117: 0.3567896553 | H117: 0.3641475192 | I117: 0.3577381242 | J117: 0.3892735068 | K117: 0.3709463411 | L117: 0.3817039544 | M117: 0.3864610446 | N117: 0.3914260129 | O117: 0.4323276168 | P117: 0.4418868782 | Q117: 0.4335256434 | R117: 0
A118: % of Investment Home Loans - Emerging Professional Landlords | B118: 0.6582694708 | C118: 0.6563974203 | D118: 0.651154849 | E118: 0.6519508341 | F118: 0.6520611476 | G118: 0.6432103447 | H118: 0.6358524808 | I118: 0.6422618758 | J118: 0.6107264932 | K118: 0.6290536589 | L118: 0.6182960456 | M118: 0.6135389554 | N118: 0.6085739871 | O118: 0.5676723832 | P118: 0.5581131218 | Q118: 0.5664743566 | R118: 0
A119: Weighted Average Interest Coverage Ratio (calculated at the origination date) | B119: 1.415027959 | C119: 1.415656985 | D119: 1.415045939 | E119: 1.417102847 | F119: 1.41567622 | G119: 1.413625668 | H119: 1.424838895 | I119: 1.444157966 | J119: 1.445210739 | K119: 1.452443293 | L119: 1.446807237 | M119: 1.452391919 | N119: 1.449283826 | O119: 1.447357285 | P119: 1.471257671 | Q119: 1.475424614 | R119: 0
A120: Number of Properties in Possession | B120: 0 | C120: 0 | D120: 0 | E120: 0 | F120: 0 | G120: 0 | H120: 0 | I120: 0 | J120: 0 | K120: 0 | L120: 0 | M120: 0 | N120: 0 | O120: 0 | P120: 0 | Q120: 0 | R120: 0
A121: Appointment of a Receiver of Rent | B121: 0 | C121: 0 | D121: 0 | E121: 0 | F121: 0 | G121: 0 | H121: 0 | I121: 0 | J121: 0 | K121: 0 | L121: 0 | M121: 0 | N121: 0 | O121: 0 | P121: 0 | Q121: 0 | R121: 0
A122: MTL Quarterly Losses | B122: 0 | C122: 0 | D122: 0 | E122: 0 | F122: 0 | G122: 0 | H122: 0 | I122: 0 | J122: 0 | K122: 0 | L122: 0 | M122: 0 | N122: 0 | O122: 0 | P122: 0 | Q122: 0 | R122: 0
A123: Arrears excluding Receiver of Rent and Possession Cases
A124: Performing Loans | B124: 1 | C124: 1 | D124: 1 | E124: 1 | F124: 1 | G124: 1 | H124: 1 | I124: 1 | J124: 1 | K124: 1 | L124: 0.9985949104 | M124: 1 | N124: 1 | O124: 1 | P124: 1 | Q124: 0.9959629965 | R124: 0
A125: >1 to 2 months arrears | B125: 0 | C125: 0 | D125: 0 | E125: 0 | F125: 0 | G125: 0 | H125: 0 | I125: 0 | J125: 0 | K125: 0 | L125: 0 | M125: 0 | N125: 0 | O125: 0 | P125: 0 | Q125: 0.004037003519 | R125: 0
A126: >2 to 3 months arrears | B126: 0 | C126: 0 | D126: 0 | E126: 0 | F126: 0 | G126: 0 | H126: 0 | I126: 0 | J126: 0 | K126: 0 | L126: 0.001405089648 | M126: 0 | N126: 0 | O126: 0 | P126: 0 | Q126: 0 | R126: 0
A127: >3 months arrears | B127: 0 | C127: 0 | D127: 0 | E127: 0 | F127: 0 | G127: 0 | H127: 0 | I127: 0 | J127: 0 | K127: 0 | L127: 0 | M127: 0 | N127: 0 | O127: 0 | P127: 0 | Q127: 0 | R127: 0
A128: Total | B128: =SUM(B124:B127) -> 1 | C128: 1 | D128: 1 | E128: 1 | F128: 1 | G128: 1 | H128: 1 | I128: 1 | J128: 1 | K128: 1 | L128: 1 | M128: 1 | N128: 1 | O128: 1 | P128: 1 | Q128: 1 | R128: =SUM(R124:R127) -> 0

Sheet Graphs
K2: PARAGON MORTGAGES (NO.24) PLC
